fUSD/lending_fUSD_20260509
["ID","MTS","AMOUNT","RATE_DAILY","PERIOD"]
[421896844,1778308609000,-1555.5,0.00037972,30]
[421896839,1778308609000,-152.0,0.00037972,30]
[421896840,1778308609000,-156.587,0.00037972,30]
[421896857,1778308609000,-170.9998525,0.00037999,31]
[421896856,1778308609000,-500.0,0.00037999,31]
[421896855,1778308609000,-200.0,0.00037999,31]
[421896854,1778308609000,-151.0,0.00037999,31]
[421896851,1778308609000,-1934.38338737,0.00037972,30]
[421896852,1778308609000,-2005.9555727,0.00037972,30]
[421896850,1778308609000,-1865.36488657,0.00037972,30]
[421896853,1778308609000,-520.0,0.00037999,31]
[421896849,1778308609000,-217.76532359,0.00037972,30]
[421896848,1778308609000,-1798.80895522,0.00037972,30]
[421896846,1778308609000,-1672.7364795,0.00037972,30]
[421896858,1778308609000,-1030.0,0.00037999,31]
[421896845,1778308609000,-1613.0535,0.00037972,30]
[421896843,1778308609000,-156.587,0.00037972,30]
[421896842,1778308609000,-1500.0,0.00037972,30]
[421896841,1778308609000,-260.287,0.00037972,30]
[421896847,1778308609000,-1734.62772924,0.00037972,30]
[421896866,1778308610000,-176.90746173,0.00037999,31]
[421896867,1778308610000,-620.0,0.00037999,31]
[421896863,1778308610000,-6888.0,0.00037999,31]
[421896865,1778308610000,-220.0,0.00037999,31]
[421896860,1778308610000,-500.0,0.00037999,31]
[421896862,1778308610000,-200.0,0.00037999,31]
[421896861,1778308610000,-588.50586411,0.00037999,31]
[421896859,1778308610000,-200.0,0.00037999,31]
[421896868,1778308610000,-151.0,0.00037999,31]
[421896864,1778308610000,-298.93861434,0.00037999,31]
[421896869,1778308610000,-1747.43168125,0.00037999,31]
[421896870,1778308610000,-500.0,0.00037999,31]
[421896873,1778308610000,-152.0,0.00037999,31]
[421896871,1778308610000,-1388.7407227,0.00037999,31]
[421896882,1778308610000,-4338771.65819513,0.00038,120]
[421896879,1778308610000,-151.0,0.00037999,31]
[421896876,1778308610000,-162.94819538,0.00037999,31]
[421896878,1778308610000,-177.49744708,0.00037999,31]
[421896880,1778308610000,-151.0,0.00037999,31]
[421896877,1778308610000,-251.0,0.00037999,31]
[421896874,1778308610000,-556.26923862,0.00037999,31]
[421896872,1778308610000,-1000.0,0.00037999,31]
[421896875,1778308610000,-151.0,0.00037999,31]
[421896881,1778308610000,-204.47170257,0.00038,31]
[421896890,1778308629000,-226.29,0.00025258,30]
[421896893,1778308629000,-226.29,0.00026748,30]
[421896895,1778308629000,-226.29,0.00028239,30]
[421896891,1778308629000,-2554.39,0.00025258,30]
[421896892,1778308629000,-3831.58,0.00026099,30]
[421896884,1778308629000,-2554.39,0.00020787,30]
[421896886,1778308629000,-2554.39,0.00022277,30]
[421896888,1778308629000,-2554.39,0.00023768,30]
[421896887,1778308629000,-226.29,0.00023768,30]
[421896885,1778308629000,-226.29,0.00022277,30]
[421896883,1778308629000,-226.29,0.00020787,30]
[421896894,1778308629000,-2554.39,0.00026748,30]
[421896889,1778308629000,-3831.58,0.00025234,30]
[421896897,1778308629000,-151.0,0.00030999,30]
[421896904,1778308629000,-896.0,0.00038,30]
[421896898,1778308629000,-808562.45047391,0.00038,120]
[421896896,1778308629000,-2554.39,0.00028239,30]
[421896909,1778308629000,-1951.141,0.000382,120]
[421896910,1778308629000,-1951.141,0.000382,30]
[421896908,1778308629000,-250.0,0.00038137,55]
[421896907,1778308629000,-271.88558589,0.000381,33]
[421896905,1778308629000,-262.77365165,0.000381,33]
[421896911,1778308629000,-1951.14,0.000382,120]
[421896902,1778308629000,-5273.0,0.00038,30]
[421896903,1778308629000,-1386.0,0.00038,30]
[421896901,1778308629000,-2139.0,0.00038,120]
[421896900,1778308629000,-1500685.0,0.00038,30]
[421896899,1778308629000,-804.61,0.00038,120]
[421896906,1778308629000,-160.0,0.000381,56]
[421896920,1778308630000,-2293.5,0.00038329,120]
[421896912,1778308630000,-1884.43,0.000382,120]
[421896914,1778308630000,-1912.34921797,0.000382,120]
[421896915,1778308630000,-1815.5546,0.000382,120]
[421896913,1778308630000,-1434.3225,0.000382,60]
[421896917,1778308630000,-2045.0,0.00038329,120]
[421896918,1778308630000,-2077.0,0.00038329,120]
[421896916,1778308630000,-2045.0,0.00038329,120]
[421896919,1778308630000,-2077.0,0.00038329,120]
[421896922,1778308630000,-255.0,0.00038356,120]
[421896926,1778308630000,-150.0,0.000385,120]
[421896923,1778308630000,-1000.0,0.00038356,100]
[421896921,1778308630000,-2293.5,0.00038329,120]
[421896931,1778308630000,-1780.74986623,0.0003888,60]
[421896930,1778308630000,-998.59040303,0.00038775,30]
[421896928,1778308630000,-217.8445103,0.0003875,120]
[421896932,1778308630000,-2618384.81251216,0.00039,120]
[421896927,1778308630000,-1818.0,0.0003863,30]
[421896925,1778308630000,-1045.82,0.00038356,120]
[421896924,1778308630000,-2000.0,0.00038356,120]
[421896929,1778308630000,-1429.14467886,0.00038775,30]
[421896933,1778308636000,-219.8,0.0002142,30]
[421896934,1778308636000,-500.0,0.00030137,120]
[421896938,1778308636000,-151.0,0.00032999,30]
[421896937,1778308636000,-151.0,0.00031999,30]
[421896936,1778308636000,-500.0,0.00031781,120]
[421896939,1778308636000,-151.0,0.00033999,30]
[421896940,1778308636000,-151.0,0.00034999,30]
[421896935,1778308636000,-500.0,0.00030959,120]
[421896941,1778308636000,-150.94,0.00035616,60]
[421896949,1778308636000,-4994450.04,0.00039,120]
[421896948,1778308636000,-150.94,0.00038904,60]
[421896946,1778308636000,-150.94,0.00037808,60]
[421896943,1778308636000,-1160.2,0.00036153,30]
[421896942,1778308636000,-151.0,0.00035999,30]
[421896945,1778308636000,-151.0,0.00036999,30]
[421896944,1778308636000,-150.94,0.00036712,60]
[421896947,1778308636000,-1160.2,0.00038125,30]
[421896958,1778308642000,-2387165.14748784,0.00039,120]
[421896950,1778308642000,-219.8,0.00022798,30]
[421896952,1778308642000,-329.71,0.00025234,30]
[421896951,1778308642000,-219.8,0.00024177,30]
[421896953,1778308642000,-219.8,0.00025556,30]
[421896955,1778308642000,-219.8,0.00028313,30]
[421896956,1778308642000,-162.0,0.00038,30]
[421896959,1778308642000,-664.0,0.00039,120]
[421896954,1778308642000,-219.8,0.00026935,30]
[421896961,1778308642000,-232.84664,0.00039,120]
[421896957,1778308642000,-162.0,0.00038157,30]
[421896968,1778308642000,-160.0,0.000391,60]
[421896964,1778308642000,-5053.0,0.00039,30]
[421896967,1778308642000,-194.53048764,0.00039067,30]
[421896966,1778308642000,-672.0,0.00039,30]
[421896963,1778308642000,-28521.12836119,0.00039,30]
[421896962,1778308642000,-5115.0,0.00039,30]
[421896960,1778308642000,-17767.99613552,0.00039,90]
[421896965,1778308642000,-1328.0,0.00039,30]
[421896984,1778308643000,-150.6,0.00039384,120]
[421896979,1778308643000,-12559.18,0.00039243,120]
[421896985,1778308643000,-2328.0,0.00039393,120]
[421896983,1778308643000,-150.6,0.00039372,120]
[421896982,1778308643000,-1300.32,0.00039336,120]
[421896980,1778308643000,-2000.0,0.00039269,120]
[421896981,1778308643000,-150.6,0.00039308,120]
[421896978,1778308643000,-2400.13,0.00039243,120]
[421896973,1778308643000,-164.64,0.00039236,60]
[421896977,1778308643000,-2332.59,0.00039243,120]
[421896974,1778308643000,-164.65,0.00039236,60]
[421896972,1778308643000,-164.64,0.00039236,60]
[421896969,1778308643000,-150.0,0.00039105,120]
[421896971,1778308643000,-1822221.0944,0.00039155,30]
[421896970,1778308643000,-150.0,0.00039105,120]
[421896986,1778308643000,-1675.05,0.000394,120]
[421896976,1778308643000,-329.88,0.00039243,120]
[421896987,1778308643000,-1300.32,0.00039436,120]
[421896975,1778308643000,-635.21,0.00039243,120]
[421896988,1778308643000,-150.61,0.00039458,120]
[421897003,1778308643000,-3978.365946,0.000398,30]
[421897004,1778308643000,-1300.32,0.00039836,120]
[421897002,1778308643000,-3978.36594602,0.000398,30]
[421897001,1778308643000,-312.51037426,0.000398,30]
[421897006,1778308643000,-2802.60037333,0.0003988,120]
[421896999,1778308643000,-312.51037427,0.000398,30]
[421897000,1778308643000,-312.51037426,0.000398,30]
[421896997,1778308643000,-150.61,0.00039758,120]
[421897005,1778308643000,-150.61,0.00039858,120]
[421896996,1778308643000,-1300.32,0.00039736,120]
[421896998,1778308643000,-150.6,0.00039784,120]
[421896990,1778308643000,-1300.32,0.00039536,120]
[421896991,1778308643000,-150.61,0.00039558,120]
[421896989,1778308643000,-150.6,0.00039484,120]
[421896993,1778308643000,-1300.32,0.00039636,120]
[421896992,1778308643000,-150.6,0.00039584,120]
[421896995,1778308643000,-150.6,0.00039684,120]
[421896994,1778308643000,-150.61,0.00039658,120]
[421897023,1778308644000,-362.04697548,0.00039999,31]
[421897021,1778308644000,-500.0,0.00039999,31]
[421897018,1778308644000,-413.38547601,0.00039999,31]
[421897019,1778308644000,-438.68168751,0.00039999,31]
[421897020,1778308644000,-500.0,0.00039999,31]
[421897017,1778308644000,-396.98704802,0.00039999,31]
[421897014,1778308644000,-150.61,0.00039958,120]
[421897016,1778308644000,-406.81313567,0.00039995,120]
[421897013,1778308644000,-1300.32,0.00039936,120]
[421897012,1778308644000,-2000.0,0.0003991,90]
[421897011,1778308644000,-2000.0,0.00039909,120]
[421897008,1778308644000,-17148.4692205,0.000399,120]
[421897009,1778308644000,-2000.0,0.000399,120]
[421897007,1778308644000,-150.6,0.00039884,120]
[421897024,1778308644000,-500.0,0.00039999,31]
[421897015,1778308644000,-150.6,0.00039984,120]
[421897010,1778308644000,-165.8,0.000399,120]
[421897022,1778308644000,-500.0,0.00039999,31]
[421897027,1778308644000,-342.83450597,0.00039999,31]
[421897025,1778308644000,-500.0,0.00039999,31]
[421897041,1778308644000,-2000.0,0.0004,120]
[421897040,1778308644000,-8315.62165001,0.0004,120]
[421897038,1778308644000,-200.0,0.00039999,31]
[421897037,1778308644000,-500.0,0.00039999,31]
[421897034,1778308644000,-494.0359241,0.00039999,31]
[421897036,1778308644000,-500.0,0.00039999,31]
[421897039,1778308644000,-7518.72,0.0004,120]
[421897033,1778308644000,-500.0,0.00039999,31]
[421897031,1778308644000,-500.0,0.00039999,31]
[421897032,1778308644000,-500.0,0.00039999,31]
[421897030,1778308644000,-200.0,0.00039999,31]
[421897029,1778308644000,-584.28696171,0.00039999,31]
[421897026,1778308644000,-500.0,0.00039999,31]
[421897028,1778308644000,-500.0,0.00039999,31]
[421897035,1778308644000,-500.0,0.00039999,31]
[421897053,1778308645000,-189.23097396,0.0004,120]
[421897056,1778308645000,-265.46556619,0.0004,120]
[421897057,1778308645000,-150.0,0.0004,120]
[421897052,1778308645000,-500.0,0.0004,120]
[421897055,1778308645000,-1630926.05860384,0.0004,120]
[421897058,1778308645000,-299940.0,0.0004,120]
[421897054,1778308645000,-1003.86110479,0.0004,120]
[421897051,1778308645000,-172.37998307,0.0004,70]
[421897044,1778308645000,-175.94599219,0.0004,120]
[421897048,1778308645000,-48071.44989355,0.0004,120]
[421897049,1778308645000,-10689.02514279,0.0004,60]
[421897047,1778308645000,-200.0,0.0004,120]
[421897046,1778308645000,-250.0,0.0004,30]
[421897045,1778308645000,-2500.0,0.0004,30]
[421897043,1778308645000,-201.12721969,0.0004,120]
[421897042,1778308645000,-150.85385202,0.0004,120]
[421897050,1778308645000,-50182.0,0.0004,58]
[421897059,1778308645000,-7097.93576591,0.0004,120]
[421897065,1778308645000,-1788.33731321,0.0004,120]
[421897061,1778308645000,-199.0,0.0004,120]
[421897076,1778308645000,-203.57237585,0.0004,60]
[421897077,1778308645000,-411.4071826,0.0004,30]
[421897078,1778308645000,-3472.04,0.0004,30]
[421897075,1778308645000,-178.46144075,0.0004,30]
[421897074,1778308645000,-21049.3943355,0.0004,120]
[421897073,1778308645000,-4445.35736548,0.0004,120]
[421897072,1778308645000,-385.25656332,0.0004,120]
[421897071,1778308645000,-161.60834783,0.0004,120]
[421897060,1778308645000,-489702.72615583,0.0004,50]
[421897068,1778308645000,-388.21973678,0.0004,120]
[421897069,1778308645000,-566.12378297,0.0004,120]
[421897067,1778308645000,-513.44349255,0.0004,30]
[421897066,1778308645000,-200.78913754,0.0004,30]
[421897063,1778308645000,-13365.980246,0.0004,120]
[421897064,1778308645000,-1020.0,0.0004,120]
[421897062,1778308645000,-153.0,0.0004,120]
[421897070,1778308645000,-178.36543707,0.0004,120]
[421897095,1778308646000,-737.91,0.0004,120]
[421897093,1778308646000,-352.43,0.0004,120]
[421897092,1778308646000,-264.66,0.0004,120]
[421897091,1778308646000,-1059.90456359,0.0004,30]
[421897090,1778308646000,-429672.5,0.0004,120]
[421897089,1778308646000,-416.97,0.0004,120]
[421897088,1778308646000,-646.34,0.0004,120]
[421897084,1778308646000,-317.67,0.0004,120]
[421897087,1778308646000,-636.00076826,0.0004,30]
[421897085,1778308646000,-193.38,0.0004,120]
[421897082,1778308646000,-22722.90930115,0.0004,120]
[421897083,1778308646000,-241.36712524,0.0004,120]
[421897081,1778308646000,-2618.79621889,0.0004,120]
[421897079,1778308646000,-6588.66363161,0.0004,90]
[421897094,1778308646000,-418.27,0.0004,120]
[421897086,1778308646000,-353.1,0.0004,120]
[421897096,1778308646000,-298.98,0.0004,120]
[421897080,1778308646000,-357.36762262,0.0004,30]
[421897100,1778308646000,-150.61,0.00040058,120]
[421897114,1778308646000,-150.0,0.0004031,120]
[421897113,1778308646000,-211.73,0.0004031,120]
[421897111,1778308646000,-150.63031639,0.00040258,120]
[421897112,1778308646000,-150.6,0.00040284,120]
[421897110,1778308646000,-1300.32,0.00040236,120]
[421897108,1778308646000,-1600.000001,0.000402,30]
[421897109,1778308646000,-250.0,0.00040219,90]
[421897106,1778308646000,-2000.0,0.00040183,120]
[421897098,1778308646000,-150.94,0.0004,60]
[421897105,1778308646000,-150.61,0.00040158,120]
[421897107,1778308646000,-150.6,0.00040184,120]
[421897103,1778308646000,-177.28327461,0.000401,120]
[421897101,1778308646000,-150.6,0.00040084,120]
[421897102,1778308646000,-160.0,0.000401,63]
[421897097,1778308646000,-451.94,0.0004,120]
[421897099,1778308646000,-1300.32,0.00040036,120]
[421897104,1778308646000,-1300.32,0.00040136,120]
[421897132,1778308647000,-199.0,0.000406,120]
[421897130,1778308647000,-627.71,0.000406,30]
[421897126,1778308647000,-150.6,0.00040584,120]
[421897127,1778308647000,-5170.37447497,0.0004059,120]
[421897128,1778308647000,-627.71,0.000406,60]
[421897125,1778308647000,-853.258,0.00040545,58]
[421897123,1778308647000,-1521.42183819,0.000405,30]
[421897120,1778308647000,-2146.973,0.0004044,30]
[421897122,1778308647000,-150.6,0.00040484,120]
[421897121,1778308647000,-150.0,0.00040463,120]
[421897118,1778308647000,-150.6,0.00040384,120]
[421897119,1778308647000,-1300.32,0.00040436,120]
[421897116,1778308647000,-227.6308551,0.00040314,120]
[421897117,1778308647000,-1300.32,0.00040336,120]
[421897129,1778308647000,-627.71,0.000406,60]
[421897124,1778308647000,-1300.32,0.00040536,120]
[421897115,1778308647000,-800.04,0.0004031,120]
[421897131,1778308647000,-627.71,0.000406,120]
[421897134,1778308647000,-1560.28,0.00040658,60]
[421897133,1778308647000,-1300.32,0.00040636,120]
[421897149,1778308647000,-1300.32,0.00040936,120]
[421897147,1778308647000,-2071.77477004,0.000409,120]
[421897148,1778308647000,-319.09245593,0.000409,30]
[421897146,1778308647000,-150.6,0.00040884,120]
[421897143,1778308647000,-150.6,0.00040784,120]
[421897144,1778308647000,-1300.32,0.00040836,120]
[421897145,1778308647000,-5513.4212,0.00040875,30]
[421897141,1778308647000,-210.19,0.0004075,120]
[421897140,1778308647000,-342.91,0.0004075,120]
[421897136,1778308647000,-150.6,0.00040684,120]
[421897137,1778308647000,-150.42,0.0004069,120]
[421897139,1778308647000,-1300.32,0.00040736,120]
[421897138,1778308647000,-57455.48520522,0.000407,120]
[421897135,1778308647000,-233.3,0.00040658,60]
[421897142,1778308647000,-369.41910928,0.0004075,120]
[421897160,1778308648000,-8888.0,0.00041,120]
[421897166,1778308648000,-153.94,0.00041,60]
[421897164,1778308648000,-50000.0,0.00041,80]
[421897162,1778308648000,-2342.51452126,0.00041,30]
[421897163,1778308648000,-432.58877401,0.00041,120]
[421897161,1778308648000,-6666.0,0.00041,120]
[421897158,1778308648000,-246.17678052,0.00041,30]
[421897150,1778308648000,-166273.0,0.0004095,60]
[421897155,1778308648000,-11272.375442,0.00041,90]
[421897154,1778308648000,-280.24,0.0004099,120]
[421897165,1778308648000,-1009.0,0.00041,120]
[421897156,1778308648000,-651.79074744,0.00041,30]
[421897151,1778308648000,-150.42,0.0004098,120]
[421897153,1778308648000,-250.0,0.00040986,100]
[421897152,1778308648000,-150.6,0.00040984,120]
[421897159,1778308648000,-8888.0,0.00041,120]
[421897167,1778308648000,-422.41,0.00041,120]
[421897157,1778308648000,-160.32318744,0.00041,120]
[421897169,1778308648000,-580.17243144,0.00041,30]
[421897185,1778308648000,-1560.0,0.00041096,120]
[421897186,1778308648000,-245.0,0.00041096,30]
[421897184,1778308648000,-207.0,0.00041096,30]
[421897181,1778308648000,-150.6,0.00041084,120]
[421897183,1778308648000,-211.0,0.00041096,30]
[421897182,1778308648000,-213.0,0.00041096,30]
[421897180,1778308648000,-250.0,0.00041041,100]
[421897179,1778308648000,-1143.1,0.00041041,120]
[421897168,1778308648000,-61834.43,0.00041,120]
[421897177,1778308648000,-183.0,0.00041,30]
[421897170,1778308648000,-1028.0,0.00041,120]
[421897171,1778308648000,-611.39582241,0.00041,120]
[421897172,1778308648000,-68028.89,0.00041,120]
[421897178,1778308648000,-1300.32,0.00041036,120]
[421897176,1778308648000,-1796.49524695,0.00041,120]
[421897174,1778308648000,-2999.59547139,0.00041,120]
[421897175,1778308648000,-155.82074132,0.00041,30]
[421897173,1778308648000,-183.25472065,0.00041,30]
[421897196,1778308649000,-559.631472,0.00041096,120]
[421897204,1778308649000,-225.141136,0.00041096,120]
[421897201,1778308649000,-559.631472,0.00041096,120]
[421897199,1778308649000,-559.631472,0.00041096,120]
[421897200,1778308649000,-559.631472,0.00041096,120]
[421897198,1778308649000,-559.631472,0.00041096,120]
[421897197,1778308649000,-559.631472,0.00041096,120]
[421897195,1778308649000,-559.631472,0.00041096,120]
[421897191,1778308649000,-559.631472,0.00041096,120]
[421897193,1778308649000,-559.631472,0.00041096,120]
[421897192,1778308649000,-559.631472,0.00041096,120]
[421897205,1778308649000,-559.631472,0.00041096,120]
[421897190,1778308649000,-559.631472,0.00041096,120]
[421897188,1778308649000,-199.0,0.00041096,120]
[421897189,1778308649000,-559.631472,0.00041096,120]
[421897187,1778308649000,-202.0,0.00041096,120]
[421897194,1778308649000,-559.631472,0.00041096,120]
[421897203,1778308649000,-559.631472,0.00041096,120]
[421897202,1778308649000,-559.631472,0.00041096,120]
[421897208,1778308649000,-559.631472,0.00041096,120]
[421897224,1778308649000,-151.0,0.00041096,120]
[421897206,1778308649000,-559.631472,0.00041096,120]
[421897223,1778308649000,-151.0,0.00041096,120]
[421897222,1778308649000,-182.437695,0.00041096,120]
[421897221,1778308649000,-151.0,0.00041096,120]
[421897220,1778308649000,-156.240523,0.00041096,120]
[421897219,1778308649000,-151.0,0.00041096,120]
[421897218,1778308649000,-151.0,0.00041096,120]
[421897215,1778308649000,-151.0,0.00041096,120]
[421897225,1778308649000,-151.0,0.00041096,120]
[421897216,1778308649000,-171.620166,0.00041096,120]
[421897214,1778308649000,-151.0,0.00041096,120]
[421897213,1778308649000,-181.554171,0.00041096,120]
[421897211,1778308649000,-151.0,0.00041096,120]
[421897212,1778308649000,-151.0,0.00041096,120]
[421897209,1778308649000,-559.631479,0.00041096,120]
[421897210,1778308649000,-151.0,0.00041096,120]
[421897207,1778308649000,-559.631472,0.00041096,120]
[421897217,1778308649000,-229.561355,0.00041096,120]
[421897240,1778308650000,-151.0,0.00041096,120]
[421897239,1778308650000,-151.0,0.00041096,120]
[421897236,1778308650000,-151.0,0.00041096,120]
[421897238,1778308650000,-151.0,0.00041096,120]
[421897237,1778308650000,-151.0,0.00041096,120]
[421897235,1778308650000,-151.0,0.00041096,120]
[421897234,1778308650000,-151.0,0.00041096,120]
[421897229,1778308650000,-151.0,0.00041096,120]
[421897233,1778308650000,-151.0,0.00041096,120]
[421897230,1778308650000,-151.0,0.00041096,120]
[421897231,1778308650000,-151.0,0.00041096,120]
[421897228,1778308650000,-151.0,0.00041096,120]
[421897226,1778308650000,-165.173881,0.00041096,120]
[421897227,1778308650000,-262.564198,0.00041096,120]
[421897243,1778308650000,-164.364718,0.00041096,120]
[421897232,1778308650000,-151.0,0.00041096,120]
[421897242,1778308650000,-245.652047,0.00041096,120]
[421897241,1778308650000,-151.0,0.00041096,120]
[421897246,1778308650000,-319.351588,0.00041096,120]
[421897260,1778308650000,-319.351588,0.00041096,120]
[421897258,1778308650000,-319.351588,0.00041096,120]
[421897256,1778308650000,-319.351588,0.00041096,120]
[421897257,1778308650000,-319.351588,0.00041096,120]
[421897255,1778308650000,-319.351588,0.00041096,120]
[421897253,1778308650000,-319.351588,0.00041096,120]
[421897254,1778308650000,-319.351588,0.00041096,120]
[421897261,1778308650000,-319.351588,0.00041096,120]
[421897252,1778308650000,-319.351588,0.00041096,120]
[421897251,1778308650000,-319.351588,0.00041096,120]
[421897259,1778308650000,-319.351588,0.00041096,120]
[421897245,1778308650000,-319.351588,0.00041096,120]
[421897244,1778308650000,-319.351588,0.00041096,120]
[421897247,1778308650000,-319.351588,0.00041096,120]
[421897249,1778308650000,-319.351588,0.00041096,120]
[421897250,1778308650000,-319.351588,0.00041096,120]
[421897248,1778308650000,-319.351588,0.00041096,120]
[421897277,1778308651000,-181.466582,0.00041096,120]
[421897274,1778308651000,-174.197217,0.00041096,120]
[421897273,1778308651000,-194.036746,0.00041096,120]
[421897275,1778308651000,-181.466582,0.00041096,120]
[421897270,1778308651000,-151.0,0.00041096,120]
[421897272,1778308651000,-203.32089,0.00041096,120]
[421897271,1778308651000,-211.349616,0.00041096,120]
[421897268,1778308651000,-151.0,0.00041096,120]
[421897266,1778308651000,-151.0,0.00041096,120]
[421897265,1778308651000,-151.0,0.00041096,120]
[421897262,1778308651000,-319.351588,0.00041096,120]
[421897264,1778308651000,-151.0,0.00041096,120]
[421897263,1778308651000,-319.35158,0.00041096,120]
[421897278,1778308651000,-181.466582,0.00041096,120]
[421897269,1778308651000,-151.0,0.00041096,120]
[421897267,1778308651000,-151.0,0.00041096,120]
[421897276,1778308651000,-181.466582,0.00041096,120]
[421897280,1778308651000,-181.466582,0.00041096,120]
[421897279,1778308651000,-181.466582,0.00041096,120]
[421897295,1778308651000,-191.745753,0.00041096,120]
[421897293,1778308651000,-181.466582,0.00041096,120]
[421897294,1778308651000,-181.46658,0.00041096,120]
[421897290,1778308651000,-181.466582,0.00041096,120]
[421897291,1778308651000,-181.466582,0.00041096,120]
[421897288,1778308651000,-181.466582,0.00041096,120]
[421897292,1778308651000,-181.466582,0.00041096,120]
[421897286,1778308651000,-181.466582,0.00041096,120]
[421897287,1778308651000,-181.466582,0.00041096,120]
[421897285,1778308651000,-181.466582,0.00041096,120]
[421897283,1778308651000,-181.466582,0.00041096,120]
[421897284,1778308651000,-181.466582,0.00041096,120]
[421897282,1778308651000,-181.466582,0.00041096,120]
[421897281,1778308651000,-181.466582,0.00041096,120]
[421897289,1778308651000,-181.466582,0.00041096,120]
[421897305,1778308652000,-160.627142,0.00041096,60]
[421897308,1778308652000,-160.627142,0.00041096,60]
[421897309,1778308652000,-160.627142,0.00041096,60]
[421897310,1778308652000,-160.627142,0.00041096,60]
[421897307,1778308652000,-160.627142,0.00041096,60]
[421897304,1778308652000,-160.627142,0.00041096,60]
[421897306,1778308652000,-160.627142,0.00041096,60]
[421897311,1778308652000,-160.627142,0.00041096,60]
[421897303,1778308652000,-160.627142,0.00041096,60]
[421897301,1778308652000,-160.627142,0.00041096,60]
[421897299,1778308652000,-160.627142,0.00041096,60]
[421897300,1778308652000,-160.627142,0.00041096,60]
[421897298,1778308652000,-160.627142,0.00041096,60]
[421897297,1778308652000,-160.627142,0.00041096,60]
[421897296,1778308652000,-160.627142,0.00041096,60]
[421897302,1778308652000,-160.627142,0.00041096,60]
[421897313,1778308652000,-160.627142,0.00041096,60]
[421897329,1778308652000,-375.404451,0.00041096,120]
[421897314,1778308652000,-160.627142,0.00041096,60]
[421897331,1778308652000,-375.404451,0.00041096,120]
[421897327,1778308652000,-375.404451,0.00041096,120]
[421897328,1778308652000,-375.404451,0.00041096,120]
[421897330,1778308652000,-375.404451,0.00041096,120]
[421897326,1778308652000,-375.404451,0.00041096,120]
[421897324,1778308652000,-375.404451,0.00041096,120]
[421897325,1778308652000,-375.404451,0.00041096,120]
[421897323,1778308652000,-375.404451,0.00041096,120]
[421897312,1778308652000,-160.627142,0.00041096,60]
[421897320,1778308652000,-375.404451,0.00041096,120]
[421897321,1778308652000,-375.404451,0.00041096,120]
[421897319,1778308652000,-375.404451,0.00041096,120]
[421897316,1778308652000,-213.040786,0.00041096,120]
[421897318,1778308652000,-375.404451,0.00041096,120]
[421897317,1778308652000,-375.404451,0.00041096,120]
[421897315,1778308652000,-160.62715,0.00041096,60]
[421897322,1778308652000,-375.404451,0.00041096,120]
[421897345,1778308653000,-159.928816,0.00041096,120]
[421897346,1778308653000,-159.928816,0.00041096,120]
[421897347,1778308653000,-159.928816,0.00041096,120]
[421897343,1778308653000,-159.928816,0.00041096,120]
[421897344,1778308653000,-159.928816,0.00041096,120]
[421897341,1778308653000,-159.928816,0.00041096,120]
[421897342,1778308653000,-159.928816,0.00041096,120]